fUSD/lending_fUSD_20250202
["ID","MTS","AMOUNT","RATE_DAILY","PERIOD"]
[351309035,1738511457397,-1621.42,0.00011369,2]
[351309036,1738511457407,-500.0,0.00011369,2]
[351309037,1738511457417,-500.0,0.00011369,2]
[351309038,1738511457426,-1280.75,0.00011369,2]
[351309039,1738511457436,-500.0,0.00011369,2]
[351309040,1738511457445,-500.0,0.00011369,2]
[351309041,1738511457454,-500.0,0.00011369,2]
[351309042,1738511457463,-2398.8,0.00011369,2]
[351309043,1738511457473,-986.99,0.00011369,2]
[351309044,1738511457486,-500.0,0.00011369,2]
[351309045,1738511457496,-500.0,0.00011369,2]
[351309046,1738511457506,-500.0,0.00011369,2]
[351309047,1738511457515,-6074.3,0.00011369,2]
[351309048,1738511457525,-500.0,0.00011369,2]
[351309049,1738511457535,-886.37,0.00011369,2]
[351309050,1738511457545,-500.0,0.00011369,2]
[351309051,1738511457555,-1376.7,0.00011369,2]
[351309052,1738511457565,-500.0,0.00011369,2]
[351309053,1738511457575,-500.0,0.00011369,2]
[351309054,1738511457585,-500.0,0.00011369,2]
[351309055,1738511457594,-715.29,0.00011369,2]
[351309056,1738511457603,-1472.49,0.00011369,2]
[351309057,1738511457613,-500.0,0.00011369,2]
[351309058,1738511457623,-500.0,0.00011369,2]
[351309059,1738511457632,-520.69,0.00011369,2]
[351309060,1738511457641,-2816.92,0.00011369,2]
[351309061,1738511457652,-500.0,0.00011369,2]
[351309062,1738511457662,-1537.46,0.00011369,2]
[351309063,1738511457671,-500.0,0.00011369,2]
[351309064,1738511457680,-1782.22,0.00011369,2]
[351309065,1738511457691,-2593.44,0.00011369,2]
[351309066,1738511457700,-500.0,0.00011369,2]
[351309067,1738511457710,-500.0,0.00011369,2]
[351309068,1738511457720,-500.0,0.00011369,2]
[351309069,1738511457730,-500.0,0.00011369,2]
[351309070,1738511457740,-1707.98,0.00011369,2]
[351309071,1738511457749,-814.03,0.00011369,2]
[351309072,1738511457759,-500.0,0.00011369,2]
[351309073,1738511457768,-2517.19,0.00011369,2]
[351309074,1738511457778,-500.0,0.00011369,2]
[351309075,1738511457788,-500.0,0.00011369,2]
[351309076,1738511457798,-500.0,0.00011369,2]
[351309077,1738511457808,-1097.15,0.00011369,2]
[351309078,1738511457817,-3495.99,0.00011369,2]
[351309079,1738511457827,-3686.72,0.00011369,2]
[351309080,1738511457836,-500.0,0.00011369,2]
[351309081,1738511457846,-500.0,0.00011369,2]
[351309082,1738511457855,-873.88,0.00011369,2]
[351309083,1738511457865,-500.0,0.00011369,2]
[351309084,1738511457875,-500.0,0.00011369,2]
[351309085,1738511457885,-500.0,0.00011369,2]
[351309086,1738511457895,-500.0,0.00011369,2]
[351309087,1738511457906,-4032.99,0.00011369,2]
[351309088,1738511457916,-500.0,0.00011369,2]
[351309089,1738511457926,-2612.06,0.00011369,2]
[351309090,1738511457936,-3411.01,0.00011369,2]
[351309091,1738511457945,-2404.98,0.00011369,2]
[351309092,1738511457955,-500.0,0.00011369,2]
[351309093,1738511457964,-500.0,0.00011369,2]
[351309094,1738511457976,-500.0,0.00011369,2]
[351309095,1738511457986,-500.0,0.00011369,2]
[351309096,1738511457996,-500.0,0.00011369,2]
[351309097,1738511458006,-500.0,0.00011369,2]
[351309098,1738511458016,-319.17158252,0.00011369,2]
[351309099,1738511458026,-866.33,0.00011369,2]
[351309100,1738511458035,-3469.55,0.00011369,2]
[351309101,1738511458045,-500.0,0.00011369,2]
[351309102,1738511458055,-1883.12,0.00011369,2]
[351309103,1738511458064,-500.0,0.00011369,2]
[351309104,1738511458074,-500.0,0.00011369,2]
[351309105,1738511458083,-2058.8,0.00011369,2]
[351309106,1738511458092,-500.0,0.00011369,2]
[351309107,1738511458102,-608.43,0.00011369,2]
[351309108,1738511458111,-1319.01,0.00011369,2]
[351309109,1738511458121,-2391.61,0.00011369,2]
[351309110,1738511458131,-500.0,0.00011369,2]
[351309111,1738511458140,-500.0,0.00011369,2]
[351309112,1738511458151,-500.0,0.00011369,2]
[351309113,1738511458161,-4530.32,0.00011369,2]
[351309114,1738511458171,-500.0,0.00011369,2]
[351309115,1738511458180,-500.0,0.00011369,2]
[351309116,1738511458190,-500.0,0.00011369,2]
[351309117,1738511458200,-1228.14,0.00011369,2]
[351309118,1738511458210,-500.0,0.00011369,2]
[351309119,1738511458220,-500.0,0.00011369,2]
[351309120,1738511458230,-6198.62,0.00011369,2]
[351309121,1738511458239,-500.0,0.00011369,2]
[351309122,1738511458249,-500.0,0.00011369,2]
[351309123,1738511458258,-500.0,0.00011369,2]
[351309124,1738511458267,-500.0,0.00011369,2]
[351309125,1738511458277,-500.0,0.00011369,2]
[351309126,1738511458286,-500.0,0.00011369,2]
[351309127,1738511458296,-500.0,0.00011369,2]
[351309128,1738511458306,-4177.74,0.00011369,2]
[351309129,1738511458315,-853.08,0.00011369,2]
[351309130,1738511458325,-500.0,0.00011369,2]
[351309131,1738511458334,-500.0,0.00011369,2]
[351309132,1738511458343,-500.0,0.00011369,2]
[351309133,1738511458352,-500.0,0.00011369,2]
[351309134,1738511458362,-282.5709701,0.00011369,2]
[351309135,1738511458372,-500.0,0.00011369,2]
[351309136,1738511458382,-510.71027693,0.00011369,2]
[351309137,1738511458391,-500.0,0.00011369,2]
[351309138,1738511458402,-669.71,0.00011369,2]
[351309139,1738511458413,-500.0,0.00011369,2]
[351309140,1738511458423,-539.5,0.00011369,2]
[351309141,1738511458433,-500.0,0.00011369,2]
[351309142,1738511458443,-500.0,0.00011369,2]
[351309143,1738511458453,-1402.67,0.00011369,2]
[351309144,1738511458462,-1801.53,0.00011369,2]
[351309145,1738511458471,-1549.92,0.00011369,2]
[351309146,1738511458481,-461.43673285,0.00011369,2]
[351309147,1738511458494,-500.0,0.00011369,2]
[351309148,1738511458504,-500.0,0.00011369,2]
[351309149,1738511458514,-500.0,0.00011369,2]
[351309150,1738511458524,-465.76576334,0.00011369,2]
[351309151,1738511458535,-820.42,0.00011369,2]
[351309152,1738511458545,-569.44,0.00011369,2]
[351309153,1738511458555,-816.63,0.00011369,2]
[351309154,1738511458568,-935.02,0.00011369,2]
[351309155,1738511458579,-500.0,0.00011369,2]
[351309156,1738511458588,-500.0,0.00011369,2]
[351309157,1738511458598,-500.0,0.00011369,2]
[351309158,1738511458608,-500.0,0.00011369,2]
[351309159,1738511458617,-584.53,0.00011369,2]
[351309160,1738511458627,-885.67,0.00011369,2]
[351309161,1738511458637,-2103.5524321,0.00011437,2]
[351309162,1738511458647,-745.12,0.00011478,2]
[351309163,1738511458656,-816.37,0.00011499,2]
[351309164,1738511458664,-1661.17,0.00011499,2]
[351309165,1738511458672,-573.22,0.00011499,2]
[351309166,1738511458680,-1332.82,0.00011499,2]
[351309167,1738511458687,-1964.01,0.00011499,2]
[351309168,1738511458695,-2603.59,0.00011499,2]
[351309169,1738511458703,-2889.94,0.00011499,2]
[351309170,1738511458712,-4743.23,0.00011499,2]
[351309171,1738511458721,-10523.62,0.00011499,2]
[351309172,1738511458730,-1554.63,0.00011499,2]
[351309173,1738511458739,-1284.59,0.00011499,2]
[351309174,1738511458749,-1679.21,0.00011499,2]
[351309175,1738511458760,-2652.81,0.00011499,2]
[351309176,1738511458770,-654.17,0.00011499,2]
[351309177,1738511458779,-1718.82,0.00011499,2]
[351309178,1738511458790,-1974.37,0.00011499,2]
[351309179,1738511458801,-2000.83,0.00011499,2]
[351309180,1738511458811,-836.56,0.00011499,2]
[351309181,1738511458820,-1343.39,0.00011499,2]
[351309182,1738511458829,-1186.75,0.00011499,2]
[351309183,1738511458839,-1000.0,0.00011499,2]
[351309184,1738511458848,-500.0,0.000115,2]
[351309185,1738511458857,-500.0,0.000115,2]
[351309186,1738511458867,-500.0,0.000115,2]
[351309187,1738511458876,-198.08,0.000115,2]
[351309188,1738511458885,-500.0,0.000115,2]
[351309189,1738511458896,-500.0,0.000115,2]
[351309190,1738511458906,-500.0,0.000115,2]
[351309191,1738511458915,-596.58,0.000115,2]
[351309192,1738511458924,-500.0,0.000115,2]
[351309193,1738511458934,-500.0,0.000115,2]
[351309194,1738511458944,-500.0,0.000115,2]
[351309195,1738511458954,-500.0,0.000115,2]
[351309196,1738511458963,-501.64243051,0.00011501,2]
[351309197,1738511458972,-506.525684,0.00011501,2]
[351309198,1738511458982,-500.0,0.00011501,2]
[351309199,1738511458992,-500.0,0.00011501,2]
[351309200,1738511459002,-500.0,0.00011501,2]
[351309201,1738511459011,-1187.42,0.00011501,2]
[351309202,1738511459021,-817.82,0.00011501,2]
[351309203,1738511459030,-607.41,0.00011501,2]
[351309204,1738511459040,-500.0,0.00011501,2]
[351309205,1738511459049,-1230.03,0.00011501,2]
[351309206,1738511459059,-615.34,0.00011501,2]
[351309207,1738511459069,-714.07,0.00011501,2]
[351309208,1738511459078,-1449.17,0.00011501,2]
[351309209,1738511459088,-500.0,0.00011501,2]
[351309210,1738511459097,-1251.19,0.00011501,2]
[351309211,1738511459106,-1405.84,0.00011501,2]
[351309212,1738511459115,-1494.61,0.00011501,2]
[351309213,1738511459125,-828.44,0.00011501,2]
[351309214,1738511459134,-500.0,0.00011501,2]
[351309215,1738511459143,-676.04,0.00011501,2]
[351309216,1738511459153,-535.23,0.00011501,2]
[351309217,1738511459163,-1723.36,0.00011501,2]
[351309218,1738511459171,-854.84,0.00011501,2]
[351309219,1738511459181,-1459.08,0.00011501,2]
[351309220,1738511459191,-500.0,0.00011501,2]
[351309221,1738511459200,-1678.19,0.00011501,2]
[351309222,1738511459210,-571.62,0.00011501,2]
[351309223,1738511459220,-500.0,0.00011501,2]
[351309224,1738511459229,-780.5,0.00011501,2]
[351309225,1738511459238,-500.0,0.00011501,2]
[351309226,1738511459248,-1296.82,0.00011501,2]
[351309227,1738511459257,-1446.98,0.00011501,2]
[351309228,1738511459266,-500.0,0.00011501,2]
[351309229,1738511459276,-618.81,0.00011501,2]
[351309230,1738511459286,-730.18,0.00011501,2]
[351309231,1738511459295,-609.86,0.00011501,2]
[351309232,1738511459306,-500.0,0.00011501,2]
[351309233,1738511459315,-1335.96,0.00011505,2]
[351309234,1738511459325,-978.46,0.00011505,2]
[351309235,1738511459335,-500.0,0.00011505,2]
[351309236,1738511459344,-518.13,0.00011505,2]
[351309237,1738511459354,-500.0,0.00011505,2]
[351309238,1738511459363,-500.0,0.00011505,2]
[351309239,1738511459536,-500.0,0.00011505,2]
[351309240,1738511459546,-500.0,0.00011505,2]
[351309241,1738511459555,-500.0,0.00011505,2]
[351309242,1738511459566,-1147.35,0.00011505,2]
[351309243,1738511459576,-500.0,0.00011505,2]
[351309244,1738511459586,-500.0,0.00011505,2]
[351309245,1738511459596,-668.46,0.00011505,2]
[351309246,1738511459606,-1211.37,0.00011505,2]
[351309247,1738511459616,-500.0,0.00011505,2]
[351309248,1738511459626,-594.76,0.00011505,2]
[351309249,1738511459636,-1093.43,0.00011505,2]
[351309250,1738511459646,-500.0,0.00011505,2]
[351309251,1738511459656,-500.0,0.00011505,2]
[351309252,1738511459666,-500.0,0.00011505,2]
[351309253,1738511459676,-500.0,0.00011505,2]
[351309254,1738511459685,-500.0,0.00011505,2]
[351309255,1738511459695,-500.0,0.00011505,2]
[351309256,1738511459704,-500.0,0.00011505,2]
[351309257,1738511459714,-500.0,0.00011505,2]
[351309258,1738511459723,-829.51,0.00011505,2]
[351309259,1738511459732,-500.0,0.00011505,2]
[351309260,1738511459742,-500.0,0.00011505,2]
[351309261,1738511459751,-500.0,0.00011505,2]
[351309262,1738511459761,-500.0,0.00011505,2]
[351309263,1738511459771,-1097.71,0.00011505,2]
[351309264,1738511459781,-1068.84,0.00011505,2]
[351309265,1738511459790,-500.0,0.00011505,2]
[351309266,1738511459800,-500.0,0.00011505,2]
[351309267,1738511459810,-500.0,0.00011505,2]
[351309268,1738511459820,-500.0,0.00011505,2]
[351309269,1738511459830,-500.0,0.00011505,2]
[351309270,1738511459839,-500.0,0.00011505,2]
[351309271,1738511459849,-500.0,0.00011505,2]
[351309272,1738511459859,-500.0,0.00011505,2]
[351309273,1738511459868,-500.0,0.00011505,2]
[351309274,1738511459878,-500.0,0.00011505,2]
[351309275,1738511459888,-561.08,0.00011505,2]
[351309276,1738511459898,-500.0,0.00011505,2]
[351309277,1738511459907,-500.0,0.00011505,2]
[351309278,1738511459918,-500.0,0.00011505,2]
[351309279,1738511459927,-515.69,0.00011505,2]
[351309280,1738511459937,-653.67,0.00011505,2]
[351309281,1738511459947,-500.0,0.00011505,2]
[351309282,1738511459956,-1093.31,0.00011505,2]
[351309283,1738511459966,-1053.18,0.00011505,2]
[351309284,1738511459976,-500.0,0.00011505,2]
[351309285,1738511459985,-500.0,0.00011505,2]
[351309286,1738511459995,-1273.51,0.00011505,2]
[351309287,1738511460004,-522.28,0.00011505,2]
[351309288,1738511460014,-1239.31,0.00011505,2]
[351309289,1738511460023,-740.34,0.00011505,2]
[351309290,1738511460033,-500.0,0.00011505,2]
[351309291,1738511460042,-500.0,0.00011505,2]
[351309292,1738511460052,-644.61,0.00011505,2]
[351309293,1738511460062,-913.35,0.00011505,2]
[351309294,1738511460072,-500.0,0.00011505,2]
[351309295,1738511460082,-1062.0,0.00011505,2]
[351309296,1738511460091,-1115.18,0.00011505,2]
[351309297,1738511460101,-945.68,0.00011505,2]
[351309298,1738511460110,-607.69,0.00011505,2]
[351309299,1738511460119,-500.0,0.00011505,2]
[351309300,1738511460129,-522.96,0.00011505,2]
[351309301,1738511460139,-500.0,0.00011505,2]
[351309302,1738511460149,-1647.72,0.00011505,2]
[351309303,1738511460158,-1035.26,0.00011505,2]
[351309304,1738511460168,-500.0,0.00011505,2]
[351309305,1738511460178,-2196.81,0.00011505,2]
[351309306,1738511460187,-500.0,0.00011505,2]
[351309307,1738511460197,-1325.26,0.00011505,2]
[351309308,1738511460206,-573.22,0.00011505,2]
[351309309,1738511460215,-975.31,0.00011505,2]
[351309310,1738511460225,-1985.37,0.00011505,2]
[351309311,1738511460235,-500.0,0.00011505,2]
[351309312,1738511460244,-500.0,0.00011505,2]
[351309313,1738511460253,-918.08,0.00011505,2]
[351309314,1738511460263,-2083.26,0.00011505,2]
[351309315,1738511460273,-1965.57,0.00011505,2]
[351309316,1738511460283,-1323.45,0.00011505,2]
[351309317,1738511460293,-1635.63,0.00011505,2]
[351309318,1738511460303,-500.0,0.00011505,2]
[351309319,1738511460312,-774.16,0.00011505,2]
[351309320,1738511460321,-5662.33,0.00011505,2]
[351309321,1738511460331,-7030.17,0.00011505,2]
[351309322,1738511460340,-782.48,0.00011505,2]
[351309323,1738511460350,-2514.52,0.00011505,2]
[351309324,1738511460360,-681.48,0.00011505,2]
[351309325,1738511460369,-790.42,0.00011505,2]
[351309326,1738511460383,-3657.25,0.00011505,2]
[351309327,1738511460393,-3049.12,0.00011505,2]
[351309328,1738511460402,-597.64872312,0.00011505,2]
[351309329,1738511460411,-500.0,0.00011505,2]
[351309330,1738511460421,-1745.16,0.00011505,2]
[351309331,1738511460431,-1031.35,0.00011505,2]
[351309332,1738511460440,-1816.81,0.00011505,2]
[351309333,1738511460450,-500.0,0.00011505,2]
[351309334,1738511460459,-528.0,0.00011505,2]
[351309335,1738511460468,-602.22,0.00011505,2]
[351309336,1738511460478,-4052.48,0.00011505,2]
[351309337,1738511460490,-500.0,0.00011505,2]
[351309338,1738511460499,-1474.86,0.00011505,2]
[351309339,1738511460508,-4337.5,0.00011505,2]
[351309340,1738511460518,-1297.61,0.00011505,2]
[351309341,1738511460531,-1453.24,0.00011505,2]
[351309342,1738511460540,-1696.27,0.00011505,2]
[351309343,1738511460550,-1292.86,0.00011505,2]
[351309344,1738511460560,-734.3,0.00011505,2]
[351309345,1738511460570,-1155.8,0.00011505,2]
[351309346,1738511460580,-1512.01,0.00011505,2]
[351309347,1738511460590,-1336.03,0.00011505,2]
[351309348,1738511460600,-500.0,0.00011505,2]
[351309349,1738511460611,-686.62,0.00011505,2]
[351309350,1738511460620,-1393.61,0.00011505,2]
[351309351,1738511460630,-500.0,0.00011505,2]
[351309352,1738511460640,-1657.23,0.00011505,2]
[351309353,1738511460651,-1120.37,0.00011505,2]
[351309354,1738511460661,-500.0,0.00011506,2]
[351309355,1738511460672,-500.0,0.00011506,2]
[351309356,1738511460681,-500.0,0.00011506,2]
[351309357,1738511460691,-461.10128325,0.00011506,2]
[351309358,1738511460701,-500.0,0.00011506,2]
[351309359,1738511460710,-500.0,0.00011506,2]
[351309360,1738511460720,-500.0,0.00011506,2]
[351309361,1738511460729,-500.0,0.00011506,2]
[351309362,1738511460738,-500.0,0.00011506,2]
[351309363,1738511460747,-500.0,0.00011506,2]
[351309364,1738511460757,-519.72841723,0.00011506,2]
[351309365,1738511460766,-500.0,0.00011506,2]
[351309366,1738511460776,-663.36,0.00011506,2]
[351309367,1738511460785,-500.0,0.00011506,2]
[351309368,1738511460795,-500.0,0.00011506,2]
[351309369,1738511460804,-500.0,0.00011506,2]
[351309370,1738511460814,-500.0,0.00011506,2]
[351309371,1738511460824,-500.0,0.00011506,2]
[351309372,1738511460833,-500.0,0.00011506,2]
[351309373,1738511460843,-500.0,0.00011506,2]
[351309374,1738511460853,-500.0,0.00011506,2]
[351309375,1738511460863,-251.68702713,0.00011506,2]
[351309376,1738511460872,-500.0,0.00011506,2]
[351309377,1738511460882,-500.0,0.00011506,2]
[351309378,1738511460892,-500.0,0.00011506,2]
[351309379,1738511460902,-698.15,0.00011506,2]
[351309380,1738511460912,-500.0,0.00011506,2]
[351309381,1738511460921,-500.0,0.00011506,2]
[351309382,1738511460931,-500.0,0.00011506,2]
[351309383,1738511460941,-500.0,0.00011506,2]
[351309384,1738511460951,-500.0,0.00011506,2]
[351309385,1738511460960,-500.0,0.00011506,2]
[351309386,1738511460970,-500.0,0.00011506,2]
[351309387,1738511460981,-500.0,0.00011506,2]
[351309388,1738511460990,-500.0,0.00011506,2]
[351309389,1738511461000,-500.0,0.00011506,2]
[351309390,1738511461010,-500.0,0.00011506,2]
[351309391,1738511461020,-500.0,0.00011506,2]
[351309392,1738511461029,-500.0,0.00011506,2]
[351309393,1738511461038,-500.0,0.00011506,2]
[351309394,1738511461048,-500.0,0.00011506,2]
[351309395,1738511461059,-500.0,0.00011506,2]
[351309396,1738511461069,-500.0,0.00011506,2]
[351309397,1738511461079,-705.16,0.00011506,2]
[351309398,1738511461089,-500.0,0.00011506,2]
[351309399,1738511461098,-531.92,0.00011506,2]
[351309400,1738511461108,-500.0,0.00011506,2]
[351309401,1738511461118,-500.0,0.00011506,2]
[351309402,1738511461127,-500.0,0.00011506,2]
[351309403,1738511461137,-500.0,0.00011506,2]
[351309404,1738511461149,-500.0,0.00011506,2]
[351309405,1738511461159,-500.0,0.00011506,2]
[351309406,1738511461169,-500.0,0.00011506,2]
[351309407,1738511461179,-500.0,0.00011506,2]
[351309408,1738511461189,-500.0,0.00011506,2]
[351309409,1738511461198,-500.0,0.00011506,2]
[351309410,1738511461208,-500.0,0.00011506,2]
[351309411,1738511461218,-500.0,0.00011506,2]
[351309412,1738511461228,-500.0,0.00011506,2]
[351309413,1738511461238,-500.0,0.00011506,2]
[351309414,1738511461248,-538.82,0.00011506,2]
[351309415,1738511461258,-719.85,0.00011506,2]
[351309416,1738511461278,-500.0,0.00011506,2]
[351309417,1738511461287,-594.38,0.00011506,2]
[351309418,1738511461298,-563.78,0.00011506,2]
[351309419,1738511461308,-500.0,0.00011506,2]
[351309420,1738511461318,-500.0,0.00011506,2]
[351309421,1738511461328,-500.0,0.00011506,2]
[351309422,1738511461338,-500.0,0.00011506,2]
[351309423,1738511461348,-500.0,0.00011506,2]
[351309424,1738511461358,-752.42,0.00011506,2]
[351309425,1738511461368,-500.0,0.00011506,2]
[351309426,1738511461378,-500.0,0.00011506,2]
[351309427,1738511461387,-500.0,0.00011506,2]
[351309428,1738511461400,-500.0,0.00011506,2]
[351309429,1738511461410,-500.0,0.00011506,2]
[351309430,1738511461420,-500.0,0.00011506,2]
[351309431,1738511461429,-500.0,0.00011506,2]
[351309432,1738511461439,-743.8,0.00011506,2]
[351309433,1738511461449,-500.0,0.00011506,2]
[351309434,1738511461459,-500.0,0.00011506,2]
[351309435,1738511461469,-500.0,0.00011506,2]
[351309436,1738511461479,-500.0,0.00011506,2]
[351309437,1738511461491,-500.0,0.00011506,2]
[351309438,1738511461500,-500.0,0.00011506,2]
[351309439,1738511461510,-500.0,0.00011506,2]
[351309440,1738511461520,-500.0,0.00011506,2]
[351309441,1738511461531,-500.0,0.00011506,2]
[351309442,1738511461540,-500.0,0.00011506,2]
[351309443,1738511461551,-725.47,0.00011506,2]
[351309444,1738511461561,-764.06,0.00011506,2]
[351309445,1738511461572,-500.0,0.00011506,2]
[351309446,1738511461582,-500.0,0.00011506,2]
[351309447,1738511461592,-500.0,0.00011506,2]
[351309448,1738511461602,-500.0,0.00011506,2]
[351309449,1738511461612,-500.0,0.00011506,2]
[351309450,1738511461622,-500.0,0.00011506,2]
[351309451,1738511461632,-500.0,0.00011506,2]
[351309452,1738511461642,-500.0,0.00011506,2]
[351309453,1738511461654,-698.18,0.00011506,2]
[351309454,1738511461663,-791.74,0.00011506,2]
[351309455,1738511461673,-515.76431586,0.00011506,2]
[351309456,1738511461683,-807.25,0.00011506,2]
[351309457,1738511461692,-547.53,0.00011506,2]
[351309458,1738511461702,-500.0,0.00011506,2]
[351309459,1738511461712,-500.0,0.00011506,2]
[351309460,1738511461721,-500.0,0.00011506,2]
[351309461,1738511461731,-500.0,0.00011506,2]
[351309462,1738511461741,-500.0,0.00011506,2]
[351309463,1738511461750,-500.0,0.00011506,2]
[351309464,1738511461760,-837.73,0.00011506,2]
[351309465,1738511461770,-500.0,0.00011506,2]
[351309466,1738511461780,-500.0,0.00011506,2]
[351309467,1738511461790,-621.45,0.00011506,2]
[351309468,1738511461799,-500.0,0.00011506,2]
[351309469,1738511461809,-631.63,0.00011506,2]
[351309470,1738511461819,-500.0,0.00011506,2]
[351309471,1738511461828,-799.17,0.00011506,2]
[351309472,1738511461838,-500.0,0.00011506,2]
[351309473,1738511461848,-771.95,0.00011506,2]
[351309474,1738511461857,-500.0,0.00011506,2]
[351309475,1738511461867,-620.52,0.00011506,2]
[351309476,1738511461877,-500.0,0.00011506,2]
[351309477,1738511461886,-500.0,0.00011506,2]
[351309478,1738511461896,-500.0,0.00011506,2]
[351309479,1738511461905,-500.0,0.00011506,2]
[351309480,1738511461915,-500.0,0.00011506,2]
[351309481,1738511461926,-618.87,0.00011506,2]
[351309482,1738511461938,-500.0,0.00011506,2]
[351309483,1738511461948,-616.27,0.00011506,2]
[351309484,1738511461958,-500.0,0.00011506,2]
[351309485,1738511461969,-500.0,0.00011506,2]
[351309486,1738511461979,-500.0,0.00011506,2]
[351309487,1738511461988,-500.0,0.00011506,2]
[351309488,1738511461998,-500.0,0.00011506,2]
[351309489,1738511462007,-565.37,0.00011506,2]
[351309490,1738511462016,-500.0,0.00011506,2]
[351309491,1738511462223,-500.0,0.00011506,2]
[351309492,1738511462234,-500.0,0.00011506,2]
[351309493,1738511462243,-500.0,0.00011506,2]
[351309494,1738511462253,-500.0,0.00011506,2]
[351309495,1738511462263,-500.0,0.00011506,2]
[351309496,1738511462274,-500.0,0.00011506,2]
[351309497,1738511462284,-229.94303993,0.00011506,2]
[351309498,1738511462294,-500.0,0.00011506,2]
[351309499,1738511462304,-500.0,0.00011506,2]
[351309500,1738511462314,-500.0,0.00011506,2]
[351309501,1738511462324,-780.81,0.00011506,2]
[351309502,1738511462334,-500.0,0.00011506,2]
[351309503,1738511462343,-500.0,0.00011506,2]
[351309504,1738511462353,-619.20292194,0.00011506,2]
[351309505,1738511462363,-584.3,0.00011506,2]
[351309506,1738511462373,-500.0,0.00011506,2]
[351309507,1738511462382,-500.0,0.00011506,2]
[351309508,1738511462392,-500.0,0.00011506,2]
[351309509,1738511462403,-500.0,0.00011506,2]
[351309510,1738511462413,-500.0,0.00011506,2]
[351309511,1738511462422,-2943.55,0.00011506,2]
[351309512,1738511462432,-500.0,0.00011506,2]
[351309513,1738511462441,-2686.29,0.00011506,2]
[351309514,1738511462450,-500.0,0.00011506,2]
[351309515,1738511462460,-500.0,0.00011506,2]
[351309516,1738511462470,-500.0,0.00011506,2]
[351309517,1738511462482,-500.0,0.00011506,2]
[351309518,1738511462493,-500.0,0.00011506,2]
[351309519,1738511462503,-808.37,0.00011506,2]
[351309520,1738511462512,-794.83,0.00011506,2]
[351309521,1738511462523,-500.0,0.00011506,2]
[351309522,1738511462532,-2679.98,0.00011506,2]
[351309523,1738511462541,-500.0,0.00011506,2]
[351309524,1738511462551,-2338.08,0.00011506,2]
[351309525,1738511462563,-500.0,0.00011506,2]
[351309526,1738511462572,-1073.23,0.00011506,2]
[351309527,1738511462582,-500.0,0.00011506,2]
[351309528,1738511462592,-607.1,0.00011506,2]
[351309529,1738511462601,-500.0,0.00011506,2]
[351309530,1738511462611,-191.62093803,0.00011506,2]
[351309531,1738511462620,-500.0,0.00011506,2]
[351309532,1738511462630,-500.0,0.00011506,2]
[351309533,1738511462639,-1816.82,0.00011506,2]
[351309534,1738511462649,-1683.79,0.00011506,2]